[Event "NJSK 2024 B"]
[Site "Groningen, Netherlands"]
[Date "2024.05.02"]
[Round "6.3"]
[White "Kazarjan, Gachatur"]
[Black "Van Batenburg, Mees"]
[Result "1-0"]
[TimeControl "90min/40moves + 30min + 30sec/move"]
[WhiteElo "2203"]
[BlackElo "2110"]

1. e4 {[%clk 01:30:58]} {[%emt 00:00:01]} e6 {[%clk 01:30:31]} {[%emt
00:00:29]} 2. d4 {[%clk 01:31:16]} {[%emt 00:00:12]} d5 {[%clk 01:30:56]}
{[%emt 00:00:05]} 3. Nd2 {[%clk 01:31:39]} {[%emt 00:00:07]} c5 {[%clk
01:31:02]} {[%emt 00:00:24]} 4. Ngf3 {[%clk 01:32:02]} {[%emt 00:00:08]} Nc6
{[%clk 01:31:21]} {[%emt 00:00:10]} 5. dxc5 {[%clk 01:32:20]} {[%emt 00:00:12]}
Bxc5 {[%clk 01:30:28]} {[%emt 00:01:23]} 6. Bd3 {[%clk 01:32:34]} {[%emt
00:00:16]} Nf6 {[%clk 01:26:47]} {[%emt 00:04:12]} 7. O-O {[%clk 01:30:57]}
{[%emt 00:02:07]} O-O {[%clk 01:16:55]} {[%emt 00:10:21]} 8. Qe2 {[%clk
01:28:20]} {[%emt 00:03:07]} Nb4 {[%clk 01:12:09]} {[%emt 00:05:17]} 9. e5
{[%clk 01:25:24]} {[%emt 00:03:26]} Nxd3 {[%clk 01:11:49]} {[%emt 00:00:49]} 10.
cxd3 {[%clk 01:25:08]} {[%emt 00:00:47]} Ne8 {[%clk 01:09:16]} {[%emt
00:03:03]} 11. Nb3 {[%clk 01:23:45]} {[%emt 00:01:52]} Be7 {[%clk 01:09:01]}
{[%emt 00:00:44]} 12. Be3 {[%clk 01:23:46]} {[%emt 00:00:29]} b6 {[%clk
01:03:09]} {[%emt 00:06:23]} 13. Rac1 {[%clk 01:21:36]} {[%emt 00:02:39]} Bb7
{[%clk 00:54:54]} {[%emt 00:08:46]} 14. Rc2 {[%clk 01:20:42]} {[%emt 00:01:24]}
Nc7 {[%clk 00:52:18]} {[%emt 00:03:07]} 15. a3 {[%clk 01:15:49]} {[%emt
00:05:23]} Rc8 {[%clk 00:48:46]} {[%emt 00:04:01]} 16. Nfd4 {[%clk 01:07:02]}
{[%emt 00:09:16]} Qd7 {[%clk 00:41:48]} {[%emt 00:07:29]} 17. f4 {[%clk
01:01:51]} {[%emt 00:05:41]} f6 {[%clk 00:39:28]} {[%emt 00:02:50]} 18. Qg4
{[%clk 01:00:06]} {[%emt 00:02:14]} f5 {[%clk 00:31:31]} {[%emt 00:08:27]} 19.
Qg3 {[%clk 00:53:46]} {[%emt 00:06:50]} Na6 {[%clk 00:29:50]} {[%emt 00:02:12]}
20. Rd2 {[%clk 00:49:10]} {[%emt 00:05:05]} Nc5 {[%clk 00:28:17]} {[%emt
00:02:04]} 21. Nc1 {[%clk 00:48:25]} {[%emt 00:01:15]} Ba6 {[%clk 00:25:31]}
{[%emt 00:03:16]} 22. Rfd1 {[%clk 00:35:30]} {[%emt 00:13:24]} Kh8 {[%clk
00:23:09]} {[%emt 00:02:53]} 23. Nce2 {[%clk 00:35:06]} {[%emt 00:00:53]} Rf7
{[%clk 00:18:54]} {[%emt 00:04:45]} 24. Kh1 {[%clk 00:32:26]} {[%emt 00:03:11]}
Na4 {[%clk 00:14:10]} {[%emt 00:05:15]} 25. Nf3 {[%clk 00:29:51]} {[%emt
00:03:04]} Qe8 {[%clk 00:12:01]} {[%emt 00:02:39]} 26. Ned4 {[%clk 00:29:48]}
{[%emt 00:00:33]} Bc5 {[%clk 00:11:19]} {[%emt 00:01:11]} 27. Qh3 {[%clk
00:26:49]} {[%emt 00:03:28]} Re7 {[%clk 00:10:18]} {[%emt 00:01:31]} 28. g4
{[%clk 00:25:50]} {[%emt 00:01:29]} g6 {[%clk 00:08:18]} {[%emt 00:02:30]} 29.
Rg2 {[%clk 00:25:45]} {[%emt 00:00:35]} Bxd4 {[%clk 00:07:45]} {[%emt
00:01:04]} 30. Bxd4 {[%clk 00:25:48]} {[%emt 00:00:27]} Rec7 {[%clk 00:07:40]}
{[%emt 00:00:35]} 31. gxf5 {[%clk 00:25:17]} {[%emt 00:01:01]} Rc1 {[%clk
00:07:49]} {[%emt 00:00:22]} 32. Rdg1 {[%clk 00:25:31]} {[%emt 00:00:15]} Rxg1+
{[%clk 00:07:20]} {[%emt 00:00:59]} 33. Nxg1 {[%clk 00:23:09]} {[%emt
00:02:52]} Nc5 {[%clk 00:04:42]} {[%emt 00:03:09]} 34. fxg6 {[%clk 00:19:59]}
{[%emt 00:03:39]} Rc7 {[%clk 00:05:05]} {[%emt 00:00:07]} 35. Qh4 {[%clk
00:17:58]} {[%emt 00:02:31]} Bxd3 {[%clk 00:03:47]} {[%emt 00:01:49]} 36. gxh7
{[%clk 00:15:43]} {[%emt 00:02:44]} Rg7 {[%clk 00:04:10]} {[%emt 00:00:08]} 37.
Rxg7 {[%clk 00:14:48]} {[%emt 00:01:26]} Kxg7 {[%clk 00:04:35]} {[%emt
00:00:04]} 38. Nf3 {[%clk 00:12:44]} {[%emt 00:02:34]} Be4 {[%clk 00:03:40]}
{[%emt 00:01:26]} 39. Kg2 {[%clk 00:12:59]} {[%emt 00:00:14]} Qg6+ {[%clk
00:02:34]} {[%emt 00:01:36]} 40. Kf2 {[%clk 00:12:07]} {[%emt 00:01:22]} Nd3+
{[%clk 00:00:56]} {[%emt 00:02:08]} 41. Ke3 {[%clk 00:10:56]} {[%emt 00:01:40]}
Kh8 {[%clk 00:28:52]} {[%emt 00:02:34]} 42. Qf6+ {[%clk 00:34:39]} {[%emt
00:06:47]} Qg7 {[%clk 00:29:02]} {[%emt 00:00:20]} 43. Ng5 {[%clk 00:34:40]}
{[%emt 00:00:29]} Bxh7 {[%clk 00:27:40]} {[%emt 00:01:51]} 44. Qxg7+ {[%clk
00:34:18]} {[%emt 00:00:51]} Kxg7 {[%clk 00:27:55]} {[%emt 00:00:15]} 45. Nxh7
{[%clk 00:34:35]} {[%emt 00:00:14]} 1-0

[Event "NJSK 2024 B"]
[Site "Groningen, Netherlands"]
[Date "2024.05.02"]
[Round "6.4"]
[White "Kumar, Prajit Sai"]
[Black "Wink, Luka"]
[Result "0-1"]
[TimeControl "90min/40moves + 30min + 30sec/move"]
[WhiteElo "2211"]
[BlackElo "2082"]

1. e4 {[%clk 01:30:58]} {[%emt 00:00:01]} c5 {[%clk 01:30:36]} {[%emt
00:00:24]} 2. Nf3 {[%clk 01:31:22]} {[%emt 00:00:06]} d6 {[%clk 01:30:49]}
{[%emt 00:00:17]} 3. d4 {[%clk 01:31:46]} {[%emt 00:00:06]} cxd4 {[%clk
01:31:13]} {[%emt 00:00:05]} 4. Nxd4 {[%clk 01:32:13]} {[%emt 00:00:04]} Nf6
{[%clk 01:31:37]} {[%emt 00:00:07]} 5. Nc3 {[%clk 01:32:40]} {[%emt 00:00:03]}
g6 {[%clk 01:32:01]} {[%emt 00:00:06]} 6. Be3 {[%clk 01:32:47]} {[%emt
00:00:23]} Bg7 {[%clk 01:32:24]} {[%emt 00:00:06]} 7. f3 {[%clk 01:32:49]}
{[%emt 00:00:28]} a6 {[%clk 01:32:49]} {[%emt 00:00:06]} 8. Qd2 {[%clk
01:30:44]} {[%emt 00:02:34]} h5 {[%clk 01:33:13]} {[%emt 00:00:06]} 9. Bc4
{[%clk 01:28:17]} {[%emt 00:02:58]} Qc7 {[%clk 01:33:34]} {[%emt 00:00:09]} 10.
Bb3 {[%clk 01:27:09]} {[%emt 00:01:38]} Nc6 {[%clk 01:33:25]} {[%emt 00:00:39]}
11. O-O-O {[%clk 01:23:59]} {[%emt 00:03:40]} Bd7 {[%clk 01:33:37]} {[%emt
00:00:18]} 12. Kb1 {[%clk 01:21:23]} {[%emt 00:03:06]} b5 {[%clk 01:27:40]}
{[%emt 00:06:28]} 13. Nxc6 {[%clk 01:08:20]} {[%emt 00:13:33]} Bxc6 {[%clk
01:27:39]} {[%emt 00:00:30]} 14. Nd5 {[%clk 01:07:12]} {[%emt 00:01:37]} Nxd5
{[%clk 01:25:27]} {[%emt 00:02:42]} 15. exd5 {[%clk 01:05:58]} {[%emt
00:01:45]} Bd7 {[%clk 01:25:24]} {[%emt 00:00:32]} 16. Bd4 {[%clk 01:05:57]}
{[%emt 00:00:31]} Bxd4 {[%clk 01:21:06]} {[%emt 00:04:48]} 17. Qxd4 {[%clk
01:06:13]} {[%emt 00:00:15]} O-O {[%clk 01:21:22]} {[%emt 00:00:14]} 18. g4
{[%clk 01:02:04]} {[%emt 00:04:39]} hxg4 {[%clk 01:17:52]} {[%emt 00:04:00]} 19.
fxg4 {[%clk 01:02:09]} {[%emt 00:00:25]} a5 {[%clk 01:13:42]} {[%emt 00:04:40]}
20. a3 {[%clk 01:01:39]} {[%emt 00:00:59]} Rac8 {[%clk 01:08:43]} {[%emt
00:05:29]} 21. Rd2 {[%clk 00:59:42]} {[%emt 00:02:28]} Qc5 {[%clk 01:04:29]}
{[%emt 00:04:45]} 22. Qe4 {[%clk 00:55:27]} {[%emt 00:04:45]} Rb8 {[%clk
00:55:42]} {[%emt 00:09:17]} 23. h4 {[%clk 00:21:38]} {[%emt 00:34:19]} a4
{[%clk 00:53:09]} {[%emt 00:03:04]} 24. h5 {[%clk 00:16:33]} {[%emt 00:05:35]}
axb3 {[%clk 00:31:49]} {[%emt 00:21:50]} 25. hxg6 {[%clk 00:16:47]} {[%emt
00:00:16]} Qc4 {[%clk 00:30:23]} {[%emt 00:01:57]} 26. Qxe7 {[%clk 00:03:55]}
{[%emt 00:13:21]} Qf4 {[%clk 00:23:38]} {[%emt 00:07:15]} 27. Qh4 {[%clk
00:03:16]} {[%emt 00:01:09]} Kg7 {[%clk 00:23:05]} {[%emt 00:01:04]} 28. Rf2
{[%clk 00:02:55]} {[%emt 00:00:50]} bxc2+ {[%clk 00:23:17]} {[%emt 00:00:18]}
29. Ka2 {[%clk 00:03:10]} {[%emt 00:00:16]} Rh8 {[%clk 00:22:07]} {[%emt
00:01:40]} 30. Rxf4 {[%clk 00:03:32]} {[%emt 00:00:07]} Rxh4 {[%clk 00:22:26]}
{[%emt 00:00:10]} 31. Rc1 {[%clk 00:03:59]} {[%emt 00:00:04]} Kxg6 {[%clk
00:21:10]} {[%emt 00:01:46]} 32. Rxc2 {[%clk 00:04:25]} {[%emt 00:00:04]} Rxg4
{[%clk 00:20:42]} {[%emt 00:00:58]} 0-1

[Event "NJSK 2024 B"]
[Site "Groningen, Netherlands"]
[Date "2024.05.02"]
[Round "6.5"]
[White "Van Arendonk, Polle"]
[Black "Krylov, Philippe"]
[Result "1-0"]
[TimeControl "90min/40moves + 30min + 30sec/move"]
[WhiteElo "1914"]
[BlackElo "2007"]

1. e4 {[%clk 01:30:57]} {[%emt 00:00:02]} c6 {[%clk 01:30:50]} {[%emt
00:00:10]} 2. d4 {[%clk 01:31:23]} {[%emt 00:00:04]} d5 {[%clk 01:31:14]}
{[%emt 00:00:06]} 3. Nc3 {[%clk 01:31:51]} {[%emt 00:00:03]} dxe4 {[%clk
01:31:35]} {[%emt 00:00:08]} 4. Nxe4 {[%clk 01:32:16]} {[%emt 00:00:05]} Bf5
{[%clk 01:31:53]} {[%emt 00:00:12]} 5. Ng3 {[%clk 01:32:42]} {[%emt 00:00:05]}
Bg6 {[%clk 01:32:17]} {[%emt 00:00:06]} 6. h4 {[%clk 01:33:10]} {[%emt
00:00:03]} h6 {[%clk 01:32:37]} {[%emt 00:00:09]} 7. Nf3 {[%clk 01:33:35]}
{[%emt 00:00:04]} Nd7 {[%clk 01:33:03]} {[%emt 00:00:05]} 8. h5 {[%clk
01:34:01]} {[%emt 00:00:04]} Bh7 {[%clk 01:33:29]} {[%emt 00:00:04]} 9. Bd3
{[%clk 01:34:29]} {[%emt 00:00:02]} Bxd3 {[%clk 01:33:52]} {[%emt 00:00:06]} 10.
Qxd3 {[%clk 01:34:56]} {[%emt 00:00:02]} e6 {[%clk 01:34:15]} {[%emt 00:00:08]}
11. Bd2 {[%clk 01:35:23]} {[%emt 00:00:03]} Ngf6 {[%clk 01:34:40]} {[%emt
00:00:04]} 12. O-O-O {[%clk 01:35:48]} {[%emt 00:00:05]} Be7 {[%clk 01:35:05]}
{[%emt 00:00:06]} 13. Ne4 {[%clk 01:36:15]} {[%emt 00:00:03]} Nxe4 {[%clk
01:35:30]} {[%emt 00:00:05]} 14. Qxe4 {[%clk 01:36:41]} {[%emt 00:00:04]} Nf6
{[%clk 01:35:55]} {[%emt 00:00:05]} 15. Qe2 {[%clk 01:37:08]} {[%emt 00:00:02]}
Qd5 {[%clk 01:36:20]} {[%emt 00:00:05]} 16. c4 {[%clk 01:37:32]} {[%emt
00:00:07]} Qe4 {[%clk 01:36:47]} {[%emt 00:00:03]} 17. Qxe4 {[%clk 01:37:58]}
{[%emt 00:00:04]} Nxe4 {[%clk 01:37:14]} {[%emt 00:00:03]} 18. Be3 {[%clk
01:38:25]} {[%emt 00:00:03]} f5 {[%clk 01:37:40]} {[%emt 00:00:04]} 19. Rhe1
{[%clk 01:38:13]} {[%emt 00:00:42]} O-O {[%clk 01:30:34]} {[%emt 00:07:36]} 20.
Kc2 {[%clk 01:20:25]} {[%emt 00:18:19]} Bf6 {[%clk 01:26:13]} {[%emt 00:04:51]}
21. Nd2 {[%clk 01:06:33]} {[%emt 00:14:21]} Nxd2 {[%clk 01:24:25]} {[%emt
00:02:18]} 22. Rxd2 {[%clk 01:06:37]} {[%emt 00:00:26]} Rfd8 {[%clk 01:18:58]}
{[%emt 00:05:57]} 23. a4 {[%clk 00:53:33]} {[%emt 00:13:34]} Kf7 {[%clk
01:16:40]} {[%emt 00:02:48]} 24. b3 {[%clk 00:48:24]} {[%emt 00:05:39]} Be7
{[%clk 01:12:37]} {[%emt 00:04:32]} 25. Red1 {[%clk 00:45:18]} {[%emt
00:03:37]} Bd6 {[%clk 01:10:37]} {[%emt 00:02:30]} 26. f3 {[%clk 00:36:27]}
{[%emt 00:09:21]} a6 {[%clk 01:05:18]} {[%emt 00:05:50]} 27. g4 {[%clk
00:32:48]} {[%emt 00:04:09]} b5 {[%clk 01:01:18]} {[%emt 00:04:30]} 28. gxf5
{[%clk 00:27:02]} {[%emt 00:06:16]} exf5 {[%clk 01:01:34]} {[%emt 00:00:14]} 29.
d5 {[%clk 00:18:26]} {[%emt 00:09:06]} Bb4 {[%clk 00:56:36]} {[%emt 00:05:27]}
30. Rd3 {[%clk 00:16:09]} {[%emt 00:02:47]} bxc4 {[%clk 00:54:09]} {[%emt
00:02:57]} 31. bxc4 {[%clk 00:16:14]} {[%emt 00:00:26]} cxd5 {[%clk 00:52:56]}
{[%emt 00:01:43]} 32. Rxd5 {[%clk 00:16:24]} {[%emt 00:00:20]} Rxd5 {[%clk
00:48:09]} {[%emt 00:05:18]} 33. Rxd5 {[%clk 00:16:21]} {[%emt 00:00:32]} Ke6
{[%clk 00:44:10]} {[%emt 00:04:30]} 34. Bd4 {[%clk 00:14:36]} {[%emt 00:02:15]}
Rc8 {[%clk 00:39:35]} {[%emt 00:05:05]} 35. Kd3 {[%clk 00:14:17]} {[%emt
00:00:50]} Bd6 {[%clk 00:37:46]} {[%emt 00:02:19]} 36. Bxg7 {[%clk 00:13:38]}
{[%emt 00:01:09]} Rg8 {[%clk 00:37:59]} {[%emt 00:00:16]} 37. Bxh6 {[%clk
00:13:18]} {[%emt 00:00:50]} Rh8 {[%clk 00:38:22]} {[%emt 00:00:07]} 38. Bd2
{[%clk 00:08:27]} {[%emt 00:05:21]} Rh7 {[%emt 00:00:07]} 39. h6 Rxh6 {[%clk
00:38:45]} 40. Ra5 {[%clk 00:08:10]} {[%emt 00:00:48]} Rh3 {[%clk 00:37:28]}
{[%emt 00:01:48]} 41. Rxa6 {[%clk 00:03:56]} {[%emt 00:04:44]} Kd7 {[%clk
00:31:43]} {[%emt 00:06:14]} 42. Kd4 {[%clk 00:26:40]} {[%emt 00:07:46]} Rxf3
{[%clk 00:59:49]} {[%emt 00:02:24]} 43. c5 {[%clk 00:26:45]} {[%emt 00:00:26]}
Bc7 {[%clk 00:55:42]} {[%emt 00:04:37]} 44. Kc4 {[%clk 00:21:45]} {[%emt
00:05:29]} Rf2 {[%clk 00:53:56]} {[%emt 00:02:16]} 45. Bb4 {[%clk 00:21:03]}
{[%emt 00:01:11]} f4 {[%clk 00:53:35]} {[%emt 00:00:50]} 46. Rh6 {[%clk
00:11:02]} {[%emt 00:10:33]} f3 {[%clk 00:53:18]} {[%emt 00:00:47]} 47. c6+
{[%clk 00:11:24]} {[%emt 00:00:09]} Ke8 {[%clk 00:51:56]} {[%emt 00:01:51]} 48.
Rf6 {[%clk 00:10:17]} {[%emt 00:01:36]} Rc2+ {[%clk 00:51:19]} {[%emt
00:01:07]} 49. Kb5 {[%clk 00:10:32]} {[%emt 00:00:15]} 1-0

[Event "NJSK 2024 B"]
[Site "Groningen, Netherlands"]
[Date "2024.05.02"]
[Round "6.6"]
[White "Ponomarev, Ivan"]
[Black "Kshirsagar, Pranav"]
[Result "0-1"]
[TimeControl "90min/40moves + 30min + 30sec/move"]
[WhiteElo "1924"]
[BlackElo "1957"]

1. c4 {[%clk 01:30:59]} {[%emt 00:00:01]} e6 {[%clk 01:30:56]} {[%emt
00:00:04]} 2. d4 {[%clk 01:31:24]} {[%emt 00:00:04]} Nf6 {[%clk 01:31:22]}
{[%emt 00:00:04]} 3. Nf3 {[%clk 01:31:45]} {[%emt 00:00:09]} d5 {[%clk
01:31:47]} {[%emt 00:00:05]} 4. g3 {[%clk 01:31:46]} {[%emt 00:00:28]} Bb4+
{[%clk 01:28:51]} {[%emt 00:03:26]} 5. Bd2 {[%clk 01:30:47]} {[%emt 00:01:29]}
Bxd2+ {[%clk 01:29:13]} {[%emt 00:00:08]} 6. Nbxd2 {[%clk 01:31:08]} {[%emt
00:00:10]} O-O {[%clk 01:29:05]} {[%emt 00:00:37]} 7. Bg2 {[%clk 01:30:58]}
{[%emt 00:00:41]} Nbd7 {[%clk 01:28:12]} {[%emt 00:01:23]} 8. O-O {[%clk
01:26:14]} {[%emt 00:05:15]} c5 {[%clk 01:26:15]} {[%emt 00:02:26]} 9. e3
{[%clk 01:08:11]} {[%emt 00:18:33]} b6 {[%clk 01:19:13]} {[%emt 00:07:32]} 10.
Rc1 {[%clk 00:55:44]} {[%emt 00:12:58]} Bb7 {[%clk 01:15:17]} {[%emt 00:04:26]}
11. Re1 {[%clk 00:44:13]} {[%emt 00:12:00]} Qe7 {[%clk 01:07:22]} {[%emt
00:08:25]} 12. Nb3 {[%clk 00:39:16]} {[%emt 00:05:28]} Rac8 {[%clk 00:53:09]}
{[%emt 00:14:43]} 13. dxc5 {[%clk 00:34:00]} {[%emt 00:05:46]} dxc4 {[%clk
00:43:57]} {[%emt 00:09:41]} 14. Rxc4 {[%clk 00:33:28]} {[%emt 00:01:03]} Bd5
{[%clk 00:43:52]} {[%emt 00:00:34]} 15. Rc1 {[%clk 00:30:11]} {[%emt 00:03:47]}
Nxc5 {[%clk 00:42:53]} {[%emt 00:01:30]} 16. Nxc5 {[%clk 00:28:50]} {[%emt
00:01:51]} Rxc5 {[%clk 00:43:04]} {[%emt 00:00:18]} 17. Rxc5 {[%clk 00:26:30]}
{[%emt 00:02:50]} Qxc5 {[%clk 00:43:17]} {[%emt 00:00:17]} 18. a3 {[%clk
00:17:16]} {[%emt 00:09:45]} Rc8 {[%clk 00:39:40]} {[%emt 00:04:06]} 19. Qd4
{[%clk 00:13:45]} {[%emt 00:03:54]} Bxf3 {[%clk 00:35:36]} {[%emt 00:04:41]} 20.
Qxc5 {[%clk 00:13:20]} {[%emt 00:00:56]} Rxc5 {[%clk 00:36:04]} {[%emt
00:00:02]} 21. Bxf3 {[%clk 00:13:39]} {[%emt 00:00:10]} Kf8 {[%clk 00:33:21]}
{[%emt 00:03:14]} 22. Re2 {[%clk 00:12:56]} {[%emt 00:01:13]} Rc1+ {[%clk
00:32:50]} {[%emt 00:01:00]} 23. Kg2 {[%clk 00:13:00]} {[%emt 00:00:27]} Ke7
{[%clk 00:32:21]} {[%emt 00:00:59]} 24. Rd2 {[%clk 00:12:23]} {[%emt 00:01:07]}
Nd7 {[%clk 00:29:22]} {[%emt 00:03:29]} 25. h4 {[%clk 00:07:48]} {[%emt
00:05:05]} Kd8 {[%clk 00:18:13]} {[%emt 00:11:38]} 26. Be2 {[%clk 00:05:13]}
{[%emt 00:03:05]} Kc7 {[%clk 00:16:45]} {[%emt 00:01:59]} 27. Bb5 {[%clk
00:04:54]} {[%emt 00:00:49]} Nb8 {[%clk 00:16:15]} {[%emt 00:01:00]} 28. Be8
{[%clk 00:02:29]} {[%emt 00:02:55]} f6 {[%clk 00:15:01]} {[%emt 00:01:44]} 29.
Kf3 {[%clk 00:02:57]} {[%emt 00:00:02]} Kc8 {[%clk 00:14:05]} {[%emt 00:01:27]}
30. h5 {[%clk 00:00:59]} {[%emt 00:02:28]} Rc7 {[%clk 00:11:16]} {[%emt
00:03:19]} 31. Bb5 {[%clk 00:00:56]} {[%emt 00:00:33]} Re7 {[%clk 00:10:17]}
{[%emt 00:01:29]} 32. Bd3 {[%clk 00:01:01]} {[%emt 00:00:25]} h6 {[%clk
00:10:00]} {[%emt 00:00:48]} 33. b4 {[%clk 00:00:52]} {[%emt 00:00:39]} a6
{[%clk 00:07:15]} {[%emt 00:03:14]} 34. Rc2+ {[%clk 00:01:00]} {[%emt
00:00:22]} Rc7 {[%clk 00:07:29]} {[%emt 00:00:16]} 35. Ke4 {[%clk 00:00:36]}
{[%emt 00:00:54]} Rxc2 {[%clk 00:07:02]} {[%emt 00:00:57]} 36. Bxc2 {[%clk
00:01:05]} {[%emt 00:00:01]} Kc7 {[%clk 00:07:20]} {[%emt 00:00:13]} 37. Bb3
{[%clk 00:01:01]} {[%emt 00:00:34]} Kd6 {[%clk 00:07:42]} {[%emt 00:00:08]} 38.
g4 {[%clk 00:00:52]} {[%emt 00:00:38]} Nd7 {[%clk 00:06:01]} {[%emt 00:02:11]}
39. f4 {[%clk 00:00:54]} {[%emt 00:00:28]} a5 {[%clk 00:04:33]} {[%emt
00:01:59]} 40. Kd4 {[%clk 00:00:35]} {[%emt 00:00:49]} axb4 {[%clk 00:03:51]}
{[%emt 00:01:11]} 41. axb4 {[%clk 00:00:40]} {[%emt 00:00:25]} Nb8 {[%clk
00:25:00]} {[%emt 00:09:21]} 42. Kc4 {[%clk 00:14:43]} {[%emt 00:16:27]} Nc6
{[%clk 00:22:53]} {[%emt 00:02:37]} 43. Kb5 {[%clk 00:13:40]} {[%emt 00:01:33]}
e5 {[%clk 00:21:32]} {[%emt 00:01:51]} 44. f5 {[%clk 00:13:16]} {[%emt
00:00:54]} Kc7 {[%clk 00:20:17]} {[%emt 00:01:46]} 45. Ba2 {[%clk 00:11:29]}
{[%emt 00:02:16]} e4 {[%clk 00:13:45]} {[%emt 00:07:02]} 46. Bc4 {[%clk
00:05:58]} {[%emt 00:06:00]} Ne5 {[%clk 00:11:50]} {[%emt 00:02:25]} 47. Be2
{[%clk 00:06:27]} {[%emt 00:00:01]} Nf3 {[%clk 00:08:40]} {[%emt 00:03:40]} 48.
Kc4 {[%clk 00:05:56]} {[%emt 00:01:01]} Kc6 {[%clk 00:08:47]} {[%emt 00:00:23]}
49. Bd1 {[%clk 00:04:27]} {[%emt 00:01:59]} Ne5+ {[%clk 00:06:21]} {[%emt
00:02:55]} 50. Kd4 {[%clk 00:02:58]} {[%emt 00:01:59]} Nd3 {[%clk 00:05:33]}
{[%emt 00:01:18]} 51. Kc3 {[%clk 00:00:39]} {[%emt 00:02:48]} Kb5 {[%clk
00:04:08]} {[%emt 00:01:56]} 52. Be2 {[%clk 00:00:38]} {[%emt 00:00:31]} Ka4
{[%clk 00:04:30]} {[%emt 00:00:08]} 53. Kd4 {[%clk 00:00:43]} {[%emt 00:00:23]}
Kxb4 {[%clk 00:03:38]} {[%emt 00:01:24]} 54. Kxe4 {[%clk 00:01:11]} {[%emt
00:00:02]} Nc1 {[%clk 00:04:03]} {[%emt 00:00:36]} 55. Bd1 {[%clk 00:01:18]}
{[%emt 00:00:52]} Kc4 {[%clk 00:03:57]} {[%emt 00:00:34]} 56. Kf4 {[%clk
00:00:50]} {[%emt 00:01:00]} b5 {[%clk 00:03:57]} {[%emt 00:00:30]} 57. e4
{[%clk 00:01:10]} {[%emt 00:00:09]} Kd4 {[%clk 00:04:08]} {[%emt 00:00:19]} 58.
Bc2 {[%clk 00:01:09]} {[%emt 00:00:31]} b4 {[%clk 00:04:06]} {[%emt 00:00:32]}
59. e5 {[%clk 00:00:48]} {[%emt 00:00:51]} fxe5 {[%clk 00:03:58]} {[%emt
00:00:38]} 60. Kf3 {[%clk 00:01:14]} {[%emt 00:00:01]} Nd3 {[%clk 00:02:02]}
{[%emt 00:02:28]} 61. Bxd3 {[%clk 00:00:42]} {[%emt 00:01:03]} Kxd3 {[%clk
00:02:27]} {[%emt 00:00:06]} 62. g5 {[%clk 00:01:04]} {[%emt 00:00:07]} e4
{[%clk 00:02:54]} {[%emt 00:00:03]} 63. Kg2 {[%clk 00:01:08]} {[%emt 00:00:23]}
hxg5 {[%clk 00:02:31]} {[%emt 00:00:55]} 64. h6 {[%clk 00:01:23]} {[%emt
00:00:16]} gxh6 {[%clk 00:02:51]} {[%emt 00:00:11]} 65. f6 {[%clk 00:01:51]}
{[%emt 00:00:01]} e3 {[%clk 00:03:10]} {[%emt 00:00:11]} 66. f7 {[%clk
00:02:20]} {[%emt 00:00:01]} e2 {[%clk 00:03:30]} {[%emt 00:00:10]} 67. f8=Q
{[%emt 00:00:03]} e1=Q {[%clk 00:03:39]} {[%emt 00:00:21]} 68. Qd6+ {[%clk
00:03:00]} {[%emt 00:00:17]} Kc2 {[%clk 00:03:52]} {[%emt 00:00:15]} 69. Qc6+
{[%clk 00:01:26]} {[%emt 00:02:06]} Qc3 {[%clk 00:03:04]} {[%emt 00:01:17]} 70.
Qg6+ {[%clk 00:01:33]} {[%emt 00:00:24]} Kb2 {[%clk 00:02:21]} {[%emt
00:01:12]} 71. Qxh6 {[%clk 00:01:58]} {[%emt 00:00:06]} Qd2 {[%clk 00:01:53]}
{[%emt 00:00:57]} 72. Kg3 {[%clk 00:02:21]} {[%emt 00:00:07]} b3 {[%clk
00:01:48]} {[%emt 00:00:37]} 73. Qg6 {[%clk 00:02:11]} {[%emt 00:00:40]} Kc1
{[%clk 00:00:45]} {[%emt 00:01:33]} 74. Qc6+ {[%clk 00:02:25]} {[%emt
00:00:15]} Kb1 {[%clk 00:00:56]} {[%emt 00:00:19]} 75. Qe4+ {[%clk 00:02:29]}
{[%emt 00:00:27]} Qc2 {[%clk 00:01:07]} {[%emt 00:00:19]} 76. Qe1+ {[%clk
00:02:26]} {[%emt 00:00:32]} Qc1 {[%clk 00:01:22]} {[%emt 00:00:17]} 77. Qe4+
{[%clk 00:02:47]} {[%emt 00:00:08]} Qc2 {[%clk 00:01:51]} {[%emt 00:00:01]} 78.
Qe1+ {[%clk 00:03:08]} {[%emt 00:00:08]} Kb2 {[%clk 00:02:16]} {[%emt
00:00:06]} 79. Kg4 {[%clk 00:03:33]} {[%emt 00:00:05]} Qc4+ {[%clk 00:00:51]}
{[%emt 00:01:55]} 80. Kf5 {[%clk 00:03:38]} {[%emt 00:00:25]} Ka2 {[%clk
00:00:57]} {[%emt 00:00:22]} 81. Qa5+ {[%clk 00:04:06]} {[%emt 00:00:05]} Kb1
{[%clk 00:01:22]} {[%emt 00:00:04]} 82. Qe1+ {[%clk 00:04:13]} {[%emt
00:00:23]} Qc1 {[%clk 00:01:48]} {[%emt 00:00:04]} 0-1